bitfinex/quotes_SOLUSD_20260214
["timestamp","ask_amount","ask_price","bid_price","bid_amount"]
[1771082053629,0.49918718,87.21,87.185,0.48455409]
[1771082055852,0.49918718,87.21,87.186,11.46973137]
[1771082056053,0.49918718,87.21,87.186,11.95428546]
[1771082056554,0.49918718,87.21,87.187,0.48455409]
[1771082057054,0.49918718,87.208,87.187,0.48455409]
[1771082057257,0.49918718,87.208,87.188,11.46946827]
[1771082057637,0.49918718,87.208,87.188,11.95402236]
[1771082060363,0.49918718,87.206,87.183,0.48455409]
[1771082062355,0.49918718,87.206,87.185,0.48455409]
[1771082064438,0.49918718,87.206,87.187,0.48455409]
[1771082070861,0.49918718,87.206,87.182,0.48455409]
[1771082072262,0.47701886,87.204,87.182,0.48455409]
[1771082072654,0.47701886,87.204,87.173,0.49658297]
[1771082075272,0.47701886,87.202,87.175,0.49658297]
[1771082077450,0.47701886,87.2,87.175,0.49658297]
[1771082077650,0.47701886,87.2,87.177,0.49658297]
[1771082082470,0.50678345,87.198,87.177,0.49658297]
[1771082085559,0.50678345,87.196,87.177,0.49658297]
[1771082089376,0.50678345,87.194,87.177,0.49658297]
[1771082090172,0.50678345,87.194,87.167,0.47978877]
[1771082091982,2.94785789,87.19,87.163,0.47978877]
[1771082092171,0.50678345,87.189,87.164,11.47262631]
[1771082092479,0.50678345,87.189,87.164,11.95241508]
[1771082093477,0.50678345,87.189,87.165,0.47978877]
[1771082095791,0.50678345,87.189,87.165,11.95217727]
[1771082096571,0.50678345,87.187,87.161,0.47978877]
[1771082098195,0.50678345,87.231,87.181,0.47978877]
[1771082098437,0.50754591,87.295,87.243,5.96301844]
[1771082098703,0.1,87.31,87.28,2.94785789]
[1771082098902,0.50754591,87.299,87.244,35.24653996]
[1771082099067,2.94785789,87.25,87.212,37.5]
[1771082099270,0.50754591,87.249,87.212,37.5]
[1771082099992,0.50754591,87.269,87.22,2.94785789]
[1771082100306,0.50754591,87.267,87.221,11.46512881]
[1771082101193,0.50754591,87.267,87.22,2.94785789]
[1771082101194,0.50754591,87.259,87.22,2.94785789]
[1771082102382,0.50754591,87.257,87.221,11.46512881]
[1771082102573,11.46026725,87.258,87.215,4.61729252]
[1771082102574,0.50754591,87.249,87.215,16.08308029]
[1771082102895,0.50754591,87.249,87.215,11.46578777]
[1771082103092,0.50754591,87.239,87.203,11.46738128]
[1771082103477,0.50754591,87.239,87.205,11.46723238]
[1771082104385,0.50754591,87.237,87.205,11.46723238]
[1771082105776,0.50754591,87.236,87.205,11.46723238]
[1771082107700,11.97083472,87.235,87.205,11.46723238]
[1771082108403,0.50754591,87.259,87.21,2.94785789]
[1771082108592,0.50754591,87.249,87.213,4.61729252]
[1771082109503,0.50754591,87.248,87.214,11.46604902]
[1771082110596,0.50754591,87.265,87.22,2.94785789]
[1771082110805,0.50754591,87.259,87.221,58.52145011]
[1771082111010,0.50754591,87.249,87.222,60.66]
[1771082111191,0.50754591,87.249,87.223,58.52010823]
[1771082111586,0.50754591,87.249,87.222,60.66]
[1771082112702,0.50754591,87.247,87.222,60.66]
[1771082113784,28.65189106,87.255,87.222,60.66]
[1771082113785,0.50754591,87.245,87.222,60.66]
[1771082113985,0.50754591,87.239,87.216,50.2847808]
[1771082114711,0.50754591,87.239,87.217,30.0]
[1771082115690,0.50754591,87.239,87.216,50.2847808]
[1771082116793,0.50754591,87.237,87.216,50.2847808]
[1771082117000,0.50754591,87.243,87.216,50.2847808]
[1771082119215,0.50754591,87.241,87.216,50.2847808]
[1771082120126,0.50754591,87.229,87.216,49.27131449]
[1771082120799,0.50754591,87.229,87.204,0.50386373]
[1771082121513,0.46163234,87.228,87.204,0.50386373]
[1771082121719,0.46163234,87.228,87.194,0.50386373]
[1771082122021,0.46163234,87.228,87.185,0.50386373]
[1771082122318,0.46163234,87.219,87.185,11.46986293]
[1771082122527,0.46163234,87.219,87.186,0.49792763]
[1771082123614,0.49016454,87.217,87.186,0.49792763]
[1771082123814,0.49016454,87.217,87.188,0.49792763]
[1771082124318,0.33054658,87.217,87.188,0.49792763]
[1771082125327,2.94785789,87.21,87.18,49.29166052]
[1771082125615,11.46670641,87.209,87.181,0.49792763]
[1771082126324,0.49016454,87.208,87.181,0.49792763]
[1771082129121,0.49016454,87.199,87.18,49.29166052]
[1771082129723,0.49016454,87.199,87.181,0.49792763]
[1771082130131,2.94828326,87.2,87.181,0.49792763]
[1771082130429,11.46736211,87.205,87.181,0.49792763]
[1771082130627,11.46736211,87.205,87.182,0.49792763]
[1771082130812,0.49016454,87.204,87.182,0.49792763]
[1771082131129,0.49464288,87.189,87.164,0.51430134]
[1771082131628,2.94828326,87.2,87.164,0.51430134]
[1771082132136,0.49464288,87.199,87.164,0.51430134]
[1771082132326,0.49464288,87.197,87.167,0.51430134]
[1771082135312,40.13945593,87.196,87.167,0.51430134]
[1771082135529,0.49464288,87.189,87.167,0.51430134]
[1771082135946,0.49464288,87.189,87.168,0.51430134]
[1771082136434,0.49464288,87.189,87.168,11.98640119]
[1771082136616,0.49464288,87.189,87.169,0.51430134]
[1771082136817,0.49464288,87.195,87.169,0.51430134]
[1771082137531,11.46867903,87.194,87.169,0.51430134]
[1771082137732,0.49464288,87.193,87.169,0.51430134]
[1771082138728,0.49464288,87.209,87.172,0.51430134]
[1771082139232,0.49464288,87.199,87.172,0.51430134]
[1771082139727,0.49464288,87.197,87.173,11.47144184]
[1771082139933,0.49464288,87.197,87.159,0.51430134]
[1771082140335,0.49464288,87.189,87.159,0.51430134]
[1771082141821,0.50775229,87.187,87.159,0.51430134]
[1771082144820,0.50775229,87.185,87.159,0.51430134]
[1771082145247,55.82775229,87.205,87.171,0.49738852]
[1771082145420,2.94828326,87.21,87.181,0.49738852]
[1771082145733,2.94828326,87.21,87.17,2.94828326]
[1771082145936,2.94828326,87.21,87.171,0.49738852]
[1771082146326,97.44354006,87.23,87.18,2.94828326]
[1771082146511,2.94828326,87.22,87.181,0.49738852]
[1771082146713,11.46539171,87.219,87.181,11.96774853]
[1771082146918,11.46539171,87.219,87.182,0.49738852]
[1771082147319,0.46350932,87.218,87.182,0.49738852]
[1771082147532,0.46350932,87.227,87.191,0.49738852]
[1771082149123,0.47257445,87.225,87.192,0.49738852]
[1771082150124,0.47702907,87.223,87.192,0.49738852]
[1771082150439,0.47702907,87.223,87.194,0.49738852]
[1771082152326,55.34,87.249,87.178,61.36]
[1771082152327,0.48360146,87.242,87.201,0.49738852]
[1771082152530,0.48360146,87.242,87.195,11.4685475]
[1771082152531,11.46360814,87.233,87.211,0.49738852]
[1771082153125,11.46394589,87.23,87.211,0.49738852]
[1771082153830,11.46329209,87.235,87.211,0.49738852]
[1771082154148,17.05570478,87.231,87.211,0.49738852]
[1771082154532,17.05570478,87.231,87.211,11.46641204]
[1771082154533,5.01398027,87.231,87.211,11.46641204]
[1771082154728,0.50775229,87.279,87.22,2.94828326]
[1771082155051,0.50775229,87.279,87.24,2.94828326]
[1771082155425,0.50775229,87.279,87.236,0.49738852]
[1771082155631,0.50775229,87.279,87.24,2.94828326]
[1771082156225,0.50775229,87.277,87.24,2.94828326]
[1771082158243,0.50775229,87.277,87.26,2.94828326]
[1771082158464,0.50775229,87.293,87.27,2.94828326]
[1771082158649,0.50775229,87.3,87.28,2.94828326]
[1771082158954,0.1,87.31,87.261,40.10955638]
[1771082158955,0.1,87.31,87.291,0.09558832]
[1771082159157,0.1,87.31,87.3,2.94828326]
[1771082159363,0.1,87.32,87.3,2.94828326]
[1771082159528,0.1,87.32,87.31,2.94828326]
[1771082159734,0.53629399,87.356,87.311,0.09860172]
[1771082160054,0.53629399,87.339,87.3,2.94828326]
[1771082160655,0.53629399,87.337,87.3,14.40293596]
[1771082160849,0.53629399,87.337,87.309,0.1296804]
[1771082161060,0.53629399,87.337,87.3,11.4546527]
[1771082161061,0.53629399,87.354,87.32,2.94828326]
[1771082161231,0.56624799,87.349,87.31,2.94828326]
[1771082162341,40.06648865,87.355,87.145,140.0]
[1771082162342,0.56624799,87.329,87.293,11.45559442]
[1771082162538,57.23119513,87.365,87.287,11.45638757]
[1771082162539,0.56624799,87.319,87.287,11.45638757]
[1771082162746,0.56624799,87.319,87.28,2.94828326]
[1771082164648,2.94828326,87.31,87.279,11.45749256]
[1771082164854,0.56624799,87.309,87.279,11.45749256]
[1771082166242,0.56624799,87.309,87.274,11.45811047]
[1771082166442,0.56624799,87.299,87.258,0.21877368]
[1771082166643,0.56624799,87.299,87.27,2.94828326]
[1771082166839,0.56624799,87.317,87.281,0.23303622]
[1771082167064,0.56624799,87.317,87.28,2.94828326]
[1771082167358,0.56624799,87.309,87.271,0.23303622]
[1771082167763,2.94828326,87.3,87.263,11.4595646]
[1771082167964,0.56624799,87.299,87.263,11.4595646]
[1771082168840,40.08291436,87.319,87.271,0.26108957]
[1771082168841,0.56624799,87.297,87.271,0.26108957]
[1771082169047,0.56624799,87.305,87.271,0.26108957]
[1771082169341,0.56624799,87.305,87.27,2.94828326]
[1771082170169,0.56624799,87.305,87.27,3.22314871]
[1771082170347,0.56624799,87.303,87.271,11.45856011]
[1771082170858,0.56624799,87.303,87.271,11.73342556]
[1771082171271,0.56624799,87.303,87.272,0.28848326]
[1771082171566,0.56624799,87.301,87.273,11.45829752]
[1771082173145,0.56624799,87.301,87.274,0.31525362]
[1771082173372,0.56624799,87.315,87.281,11.45724728]
[1771082173659,0.56624799,87.315,87.282,0.31525362]
[1771082173855,0.56624799,87.314,87.282,0.31525362]
[1771082174257,0.56624799,87.314,87.29,2.94828326]
[1771082174461,11.45198453,87.322,87.291,0.32842395]
[1771082174759,0.56624799,87.336,87.301,0.32842395]
[1771082174963,0.56624799,87.336,87.31,2.94828326]
[1771082175161,55.79699999,87.369,87.32,2.94828326]
[1771082175162,0.56624799,87.345,87.32,2.94828326]
[1771082175466,0.56624799,87.345,87.321,11.45199894]
[1771082179271,0.56624799,87.357,87.331,0.39192633]
[1771082179568,0.56624799,87.357,87.34,2.94828326]
[1771082179864,0.79699999,87.369,87.35,2.94828326]
[1771082181270,0.79699999,87.369,87.36,2.94828326]
[1771082181561,0.1,87.37,87.36,2.94828326]
[1771082182366,0.58629399,87.397,87.361,0.32827524]
[1771082182546,0.58629399,87.397,87.37,2.94828326]
[1771082183165,11.44272499,87.392,87.37,2.94828326]
[1771082183470,12.02844432,87.397,87.37,2.94828326]
[1771082183858,0.58629399,87.397,87.371,11.44544528]
[1771082186059,0.1,87.4,87.371,11.44544528]
[1771082186266,0.1,87.4,87.381,0.17543431]
[1771082186662,0.1,87.4,87.39,2.94828326]
[1771082186979,0.68629399,87.412,87.39,2.93336985]
[1771082187678,0.73629399,87.409,87.38,2.93336985]
[1771082187854,0.73629399,87.409,87.37,2.93336985]
[1771082188518,0.73629399,87.409,87.37,3.03180917]
[1771082188775,0.73629399,87.407,87.37,0.09843932]
[1771082188976,0.73629399,87.407,87.37,3.03180917]
[1771082190751,0.73629399,87.407,87.372,0.12099306]
[1771082191068,0.73629399,87.407,87.38,2.93336985]
[1771082191676,0.80301553,87.416,87.381,0.14271615]
[1771082191859,0.80301553,87.416,87.371,40.05905849]
[1771082191860,0.80301553,87.416,87.391,0.15337977]
[1771082192776,0.80301553,87.416,87.391,11.59620569]
[1771082193183,0.80301553,87.415,87.391,11.44282592]
[1771082193384,0.80301553,87.415,87.389,60.9]
[1771082193696,0.80301553,87.415,87.39,14.37632671]
[1771082193894,0.80301553,87.415,87.39,11.44295686]
[1771082194280,0.80301553,87.415,87.389,60.9]
[1771082194484,0.80301553,87.415,87.389,72.34305097]
[1771082194889,0.80301553,87.413,87.389,72.34305097]
[1771082195079,0.80301553,87.409,87.362,0.18464872]
[1771082195280,0.80301553,87.409,87.364,0.18464872]
[1771082195699,0.80301553,87.409,87.37,3.11801857]
[1771082195898,0.80301553,87.409,87.363,72.36649336]
[1771082196094,0.80301553,87.399,87.363,72.5613314]
[1771082196698,0.80301553,87.397,87.363,72.36649336]
[1771082197202,0.80301553,87.397,87.363,11.44649336]
[1771082197404,11.44136078,87.403,87.371,0.20490607]
[1771082197598,0.80301553,87.402,87.371,0.20490607]
[1771082197778,0.80301553,87.402,87.364,60.92]
[1771082197983,0.80301553,87.402,87.364,61.13485654]
[1771082198192,0.80301553,87.399,87.363,11.44649336]
[1771082198383,0.80301553,87.399,87.364,60.92]
[1771082199900,0.80301553,87.397,87.365,11.44623132]
[1771082201906,0.81584492,87.395,87.365,11.44623132]
[1771082204293,0.81584492,87.389,87.343,11.44911441]
[1771082204489,0.81584492,87.379,87.343,11.44911441]
[1771082204711,0.81584492,87.369,87.344,60.98]
[1771082206402,0.81584492,87.367,87.331,11.45066025]
[1771082206599,0.81584492,87.367,87.332,58.94]
[1771082207893,11.44610031,87.366,87.332,58.94]
[1771082208087,0.81584492,87.368,87.334,0.31707472]
[1771082208295,0.81584492,87.368,87.34,3.25044457]
[1771082208491,0.81584492,87.368,87.34,0.31707472]
[1771082208899,11.445145,87.374,87.341,0.32572633]
[1771082209196,0.81584492,87.383,87.351,0.32572633]
[1771082209812,0.81584492,87.393,87.361,0.32572633]
[1771082210009,0.81584492,87.393,87.365,0.33428578]
[1771082210697,0.81584492,87.419,87.371,0.33428578]
[1771082210891,0.81584492,87.419,87.38,7.67868196]
[1771082211110,0.81584492,87.419,87.381,0.34276227]
[1771082211308,0.81584492,87.418,87.381,0.34276227]
[1771082211702,0.81584492,87.418,87.39,7.33591969]
[1771082212511,0.81584492,87.416,87.391,11.44282592]
[1771082212941,0.81584492,87.416,87.39,7.33591969]
[1771082213230,0.81584492,87.416,87.389,61.02]
[1771082213399,0.81584492,87.416,87.39,7.30402002]
[1771082213599,0.81584492,87.416,87.39,7.33591969]
[1771082214027,0.81584492,87.416,87.391,11.44282592]
[1771082219705,0.81584492,87.416,87.391,11.84980981]
[1771082219930,0.81584492,87.416,87.393,11.44256404]
[1771082220229,0.81584492,87.416,87.393,11.85718976]
[1771082220529,7.43591969,87.43,87.394,0.41462572]
[1771082220530,0.81584492,87.423,87.394,0.41462572]
[1771082220736,0.81584492,87.423,87.401,0.41462572]
[1771082221029,0.1,87.43,87.411,0.42216225]
[1771082221207,0.1,87.43,87.412,61.1]
[1771082221403,0.88449587,87.429,87.412,61.1]
[1771082221809,7.33591969,87.42,87.4,61.12]
[1771082222035,0.88449587,87.417,87.4,61.12]
[1771082223512,0.88449587,87.417,87.383,0.93047043]
[1771082223711,0.88449587,87.417,87.384,0.93047043]
[1771082224332,0.88449587,87.415,87.378,0.93047043]
[1771082224518,0.88449587,87.415,87.376,11.4447773]
[1771082224519,0.88449587,87.409,87.379,61.14]
[1771082224919,0.88449587,87.399,87.379,60.18015497]
[1771082225125,0.88449587,87.399,87.379,59.61780861]
[1771082225738,7.33591969,87.39,87.348,0.96839594]
[1771082225918,7.33591969,87.39,87.35,0.96839594]
[1771082226227,7.33591969,87.39,87.351,11.44806584]
[1771082226228,11.4430878,87.389,87.351,11.44806584]
[1771082226539,11.4430878,87.389,87.352,0.96839594]
[1771082227046,40.03248349,87.429,87.381,0.96839594]
[1771082227217,40.03248349,87.429,87.383,0.96839594]
[1771082227850,0.0284356,87.428,87.383,0.96839594]
[1771082228618,0.0284356,87.428,87.385,0.96839594]
[1771082229337,0.0284356,87.428,87.391,0.96839594]
[1771082230745,0.0284356,87.428,87.393,0.96839594]
[1771082233444,11.43785242,87.429,87.401,0.96839594]
[1771082234659,0.1,87.43,87.402,0.96839594]
[1771082234842,0.09099094,87.429,87.402,0.96839594]
[1771082235040,0.09099094,87.419,87.387,0.96839594]
[1771082236129,0.09099094,87.419,87.388,0.96839594]
[1771082236335,0.09952633,87.427,87.388,0.96839594]
[1771082236537,0.09952633,87.427,87.39,0.96839594]
[1771082237140,0.09952633,87.427,87.391,0.96839594]
[1771082237346,11.43785242,87.429,87.391,0.96839594]
[1771082237858,0.1,87.43,87.401,0.96839594]
[1771082238359,0.1,87.43,87.411,0.96839594]
[1771082239661,11.43262184,87.469,87.421,0.96839594]
[1771082239838,11.43262184,87.469,87.441,0.96839594]
[1771082240041,11.43160597,87.477,87.441,0.96839594]
[1771082240253,0.13269594,87.476,87.441,0.96839594]
[1771082241348,0.13269594,87.476,87.443,0.96839594]
[1771082242561,0.14868041,87.499,87.461,0.96839594]
[1771082243567,0.15655677,87.498,87.461,0.96839594]
[1771082243745,0.15655677,87.489,87.461,0.96839594]
[1771082243948,0.15655677,87.489,87.443,0.96839594]
[1771082244264,0.16432943,87.489,87.451,0.96839594]
[1771082244474,0.16432943,87.489,87.461,0.96839594]
[1771082244971,0.16432943,87.489,87.451,0.96839594]
[1771082246039,7.33591969,87.48,87.451,0.96839594]
[1771082246244,0.17961965,87.479,87.445,0.96839594]
[1771082247145,0.18710762,87.477,87.445,0.96839594]
[1771082247340,0.18710762,87.477,87.446,11.43562884]
[1771082247665,0.18710762,87.477,87.446,12.40402478]
[1771082248364,0.18710762,87.477,87.447,0.96839594]
[1771082248871,11.43170698,87.476,87.447,0.96839594]
[1771082251665,0.21932225,87.507,87.47,7.32526246]
[1771082251853,11.4277878,87.506,87.481,1.06513756]
[1771082252043,39.99725732,87.506,87.481,1.06513756]
[1771082252242,0.22433583,87.505,87.471,1.06513756]
[1771082253071,39.99725732,87.506,87.481,1.06513756]
[1771082253665,11.4277878,87.506,87.481,1.06513756]
[1771082253869,11.4277878,87.506,87.453,61.04]
[1771082253870,0.1,87.51,87.491,1.06513756]
[1771082257249,11.42609033,87.519,87.501,1.06513756]
[1771082257447,0.24855609,87.518,87.484,1.06513756]
[1771082257972,0.25323714,87.516,87.484,1.06513756]
[1771082258852,39.99223007,87.517,87.484,1.06513756]
[1771082259070,39.99223007,87.517,87.491,1.06513756]
[1771082259654,0.25786174,87.516,87.484,1.06513756]
[1771082259852,0.26245749,87.507,87.47,7.32526246]
[1771082260057,0.26245749,87.507,87.471,1.06513756]
[1771082260257,39.99634318,87.508,87.471,1.06513756]
[1771082260258,0.26245749,87.499,87.471,1.06513756]
[1771082260662,7.32526246,87.49,87.461,1.05293517]
[1771082260856,0.26698097,87.492,87.461,1.05293517]
[1771082261183,0.27145419,87.537,87.481,1.05293517]
[1771082261378,0.27145419,87.537,87.501,1.05293517]
[1771082261676,0.27145419,87.519,87.491,1.05293517]
[1771082261855,11.70209749,87.518,87.491,1.05293517]
[1771082262055,0.2758766,87.517,87.491,1.05293517]
[1771082262676,7.32526246,87.51,87.483,1.05293517]
[1771082262873,0.2758766,87.509,87.471,1.05293517]
[1771082263275,7.32526246,87.5,87.471,1.05293517]
[1771082263775,11.42870204,87.499,87.472,1.05293517]
[1771082264278,11.42810586,87.504,87.481,1.05293517]
[1771082264771,11.42748564,87.509,87.481,1.05293517]
[1771082265083,11.42748564,87.509,87.471,11.43235029]
[1771082265084,0.28882849,87.556,87.501,1.05293517]
[1771082265260,0.28882849,87.549,87.514,1.05293517]
[1771082265459,0.28882849,87.539,87.501,1.05293517]
[1771082265668,7.32526246,87.53,87.501,1.05293517]
[1771082265869,0.28882849,87.529,87.491,1.05293517]
[1771082266367,54.04,87.536,87.501,1.05293517]
[1771082266688,7.32526246,87.53,87.501,1.05293517]
[1771082266856,0.29723545,87.529,87.491,1.05293517]
[1771082267063,0.29723545,87.519,87.481,1.05293517]
[1771082267367,54.06,87.534,87.461,1.05293517]
[1771082267368,0.29723545,87.509,87.461,1.05293517]
[1771082267685,11.42752662,87.508,87.471,1.05293517]
[1771082268602,11.72889498,87.508,87.471,1.05293517]
[1771082268791,0.30136836,87.507,87.471,1.05293517]
[1771082269087,0.30547436,87.499,87.471,1.05293517]
[1771082269384,0.30547436,87.507,87.471,1.05293517]
[1771082269761,11.4277878,87.506,87.471,1.05293517]
[1771082269962,0.30952928,87.505,87.471,1.05293517]
[1771082270577,0.30952928,87.499,87.471,1.05293517]
[1771082271480,11.42883265,87.498,87.471,1.05293517]
[1771082271793,0.31352174,87.497,87.471,1.05293517]
[1771082271971,11.42755883,87.508,87.473,1.05293517]
[1771082273294,39.99637539,87.508,87.473,1.05293517]
[1771082274769,40.32161888,87.508,87.473,1.05293517]
[1771082275366,11.4277878,87.506,87.473,1.05293517]
[1771082275769,0.32904692,87.505,87.473,1.05293517]
[1771082275974,2.92844554,87.5,87.473,1.05293517]
[1771082277799,11.42870204,87.499,87.473,1.05293517]
[1771082280010,2.92844554,87.49,87.461,1.05293517]
[1771082280175,0.34749131,87.489,87.454,1.05293517]
[1771082280378,2.92844554,87.47,87.442,1.05293517]
[1771082280575,2.92844554,87.46,87.434,1.05293517]
[1771082280778,2.92844554,87.45,87.434,1.05293517]
[1771082281084,2.92844554,87.46,87.434,1.05293517]
[1771082281293,2.92844554,87.45,87.439,24.84821123]
[1771082281476,2.92844554,87.45,87.415,1.14569454]
[1771082282199,2.92844554,87.44,87.415,1.14569454]
[1771082283990,11.43654433,87.439,87.415,1.14569454]
[1771082284695,11.43654433,87.439,87.41,11.44021471]
[1771082284897,11.43654433,87.439,87.407,1.14569454]
[1771082284898,2.92844554,87.43,87.407,1.14569454]
[1771082285290,40.02790516,87.439,87.407,1.14569454]
[1771082287303,11.43785242,87.429,87.407,1.14569454]
[1771082287598,2.92844554,87.42,87.381,1.14569454]
[1771082287807,0.02195544,87.419,87.381,1.14569454]
[1771082288398,2.92844554,87.41,87.382,1.14569454]
[1771082288585,0.02547254,87.419,87.382,1.14569454]
[1771082289109,2.92844554,87.41,87.382,1.14569454]
[1771082289807,54.06,87.424,87.38,11.64425299]
[1771082289808,0.02893339,87.417,87.384,1.14569454]
[1771082290995,28.59463107,87.429,87.383,11.44387352]
[1771082290996,11.43868443,87.423,87.391,1.14569454]
[1771082291404,11.43868443,87.423,87.401,1.14569454]
[1771082291590,65.49654433,87.439,87.401,1.14569454]
[1771082291907,65.49654433,87.439,87.411,1.14569454]
[1771082293785,94.08790516,87.439,87.411,1.14569454]
[1771082293986,0.04569461,87.438,87.411,1.14569454]
[1771082296505,11.43654433,87.439,87.411,1.14569454]
[1771082298505,0.05843529,87.438,87.411,1.14569454]
[1771082298904,11.43654433,87.439,87.411,1.14569454]
[1771082299216,11.43654433,87.439,87.412,1.14569454]
[1771082299408,11.43598844,87.444,87.414,1.14569454]
[1771082299594,11.43598844,87.444,87.421,1.14569454]
[1771082299793,11.43392904,87.459,87.421,1.14569454]
[1771082300117,54.28,87.458,87.431,1.14569454]
[1771082300302,0.06459227,87.457,87.424,1.14569454]
[1771082302710,0.0706077,87.449,87.411,1.14569454]
[1771082302899,7.33126512,87.44,87.411,1.14569454]
[1771082303400,54.28,87.439,87.411,1.14569454]
[1771082303996,0.07649315,87.419,87.389,1.14569454]
[1771082304808,11.51565397,87.419,87.389,1.14569454]
[1771082305112,11.51565397,87.419,87.391,1.14569454]
[1771082305300,11.43916082,87.419,87.391,1.14569454]
[1771082307599,40.03706287,87.419,87.391,1.14569454]
[1771082307910,7.33126512,87.41,87.381,1.14569454]
[1771082308118,54.32,87.409,87.381,1.14569454]
[1771082309902,11.4406004,87.408,87.381,1.14569454]
[1771082312507,11.4406004,87.408,87.383,1.14569454]
[1771082314118,11.43929167,87.418,87.384,11.44374256]
[1771082314418,54.4,87.417,87.385,1.14569454]
[1771082315016,0.10694037,87.415,87.385,1.14569454]
[1771082315328,2.93468611,87.41,87.385,1.14569454]
[1771082316831,11.44046951,87.409,87.385,1.14569454]
[1771082318117,0.11334479,87.436,87.401,1.14569454]
[1771082318309,3.0480309,87.43,87.401,1.14569454]
[1771082318632,0.11334479,87.429,87.401,1.14569454]
[1771082319232,11.55119721,87.429,87.401,1.14569454]
[1771082320609,40.14582828,87.429,87.401,1.14569454]
[1771082321409,40.03248349,87.429,87.401,1.14569454]
[1771082321917,40.15402558,87.429,87.401,1.14569454]
[1771082323539,11.55939451,87.429,87.401,1.14569454]
[1771082324728,40.15402558,87.429,87.401,1.14569454]
[1771082326326,11.43719834,87.434,87.411,1.14569454]
[1771082326528,11.43562884,87.446,87.411,1.14569454]
[1771082327111,0.13317457,87.445,87.411,1.14569454]
[1771082327524,0.13317457,87.445,87.413,1.14569454]
[1771082330724,65.87562884,87.446,87.413,1.14569454]
[1771082331740,65.89562884,87.446,87.414,1.14569454]
[1771082332530,65.89562884,87.446,87.416,1.14569454]
[1771082332727,11.43562884,87.446,87.416,1.14569454]
[1771082336257,11.43589039,87.444,87.416,1.14569454]
[1771082336550,11.43589039,87.444,87.418,1.14569454]
[1771082339040,11.4353673,87.448,87.421,1.14569454]
[1771082340816,0.15743965,87.447,87.41,2.93468611]
[1771082341021,0.15743965,87.439,87.406,1.14569454]
[1771082341222,0.15743965,87.439,87.4,2.93468611]
[1771082341223,0.15743965,87.439,87.408,1.17152064]
[1771082343262,0.1621498,87.429,87.393,1.17152064]
[1771082343436,0.1621498,87.429,87.392,11.44269498]
[1771082343437,11.43798325,87.428,87.395,1.17152064]
[1771082346543,11.43798325,87.428,87.401,1.17152064]
[1771082348025,11.43798325,87.428,87.403,1.17152064]
[1771082350549,54.58,87.429,87.381,61.9]
[1771082350550,2.93468611,87.45,87.411,1.17152064]
[1771082350753,66.09523653,87.449,87.421,1.17152064]
[1771082351055,0.17392303,87.448,87.421,1.17152064]
[1771082351435,66.09523653,87.449,87.421,1.17152064]
[1771082351637,54.66,87.448,87.421,1.17152064]
[1771082352154,11.43523653,87.449,87.421,1.17152064]
[1771082353056,11.43523653,87.449,87.422,1.17152064]
[1771082353248,0.17672129,87.448,87.422,1.17152064]
[1771082354553,0.17672129,87.448,87.423,1.17152064]
[1771082355167,11.43523653,87.449,87.423,1.17152064]
[1771082355467,66.13523653,87.449,87.425,1.17152064]
[1771082355968,66.31601221,87.449,87.425,1.17152064]
[1771082357549,11.61601221,87.449,87.425,1.17152064]
[1771082357734,11.43549807,87.447,87.425,1.17152064]
[1771082358364,11.43314468,87.465,87.431,1.17152064]
[1771082358566,54.72,87.464,87.431,1.17152064]
[1771082359242,11.43261441,87.47,87.431,1.17152064]
[1771082359572,45.68704695,87.553,87.46,2.93468611]
[1771082359573,54.74,87.488,87.46,2.93468611]
[1771082359862,54.72,87.49,87.462,1.17152064]
[1771082361262,54.72,87.49,87.463,1.17152064]
[1771082361567,0.18722552,87.519,87.463,1.17152064]
[1771082361745,14.79565015,87.507,87.481,1.17152064]
[1771082361947,0.18845962,87.506,87.481,1.17152064]
[1771082363564,11.4279184,87.505,87.481,1.17152064]
[1771082364249,39.99771441,87.505,87.481,1.17152064]
[1771082364766,1.13210926,87.529,87.494,1.17152064]
[1771082365065,1.13210926,87.529,87.49,2.93468611]
[1771082365266,1.13210926,87.529,87.49,4.10620675]
[1771082365462,1.13210926,87.529,87.491,1.17152064]
[1771082365765,1.13210926,87.527,87.491,1.17152064]
[1771082365966,11.42491545,87.528,87.493,1.17152064]
[1771082366176,1.13210926,87.527,87.501,1.17152064]
[1771082366370,54.76,87.53,87.501,1.17152064]
[1771082367059,1.13210926,87.528,87.494,1.17152064]
[1771082367268,1.13210926,87.519,87.487,1.17152064]
[1771082367476,11.42478492,87.529,87.491,1.17152064]
[1771082367680,11.42478492,87.529,87.493,1.17152064]
[1771082367865,1.13210926,87.528,87.493,1.17152064]
[1771082368269,54.76,87.527,87.493,1.17152064]
[1771082368468,1.13210926,87.526,87.493,1.17152064]
[1771082369085,11.42478492,87.529,87.501,1.17152064]
[1771082369483,1.13210926,87.528,87.501,1.17152064]
[1771082369683,1.13210926,87.526,87.501,1.17152064]
[1771082369884,1.13210926,87.526,87.494,1.17152064]
[1771082370291,1.13210926,87.519,87.487,11.43017115]
[1771082370499,1.13210926,87.519,87.488,1.17152064]
[1771082370884,1.13210926,87.526,87.491,1.17152064]